fUSD/lending_fUSD_20240319
["ID","MTS","AMOUNT","RATE_DAILY","PERIOD"]
[319557209,1710856234659,-500.0,0.00044,7]
[319557210,1710856234669,-500.0,0.00044,7]
[319557211,1710856234679,-500.0,0.00044,7]
[319557212,1710856234689,-500.0,0.00044,7]
[319557213,1710856234698,-500.0,0.00044,7]
[319557214,1710856234713,-500.0,0.00044,7]
[319557215,1710856234723,-500.0,0.00044,7]
[319557216,1710856234732,-500.0,0.00044,7]
[319557217,1710856234742,-500.0,0.00044,7]
[319557218,1710856234752,-500.0,0.00044,7]
[319557219,1710856234763,-500.0,0.00044,7]
[319557220,1710856234774,-500.0,0.00044,7]
[319557221,1710856234784,-500.0,0.00044,7]
[319557222,1710856234795,-500.0,0.00044,7]
[319557223,1710856234805,-500.0,0.00044,7]
[319557224,1710856234816,-500.0,0.00044,7]
[319557225,1710856234826,-500.0,0.00044,7]
[319557226,1710856234836,-500.0,0.00044,7]
[319557227,1710856234846,-500.0,0.00044,7]
[319557228,1710856234855,-500.0,0.00044,7]
[319557229,1710856234867,-500.0,0.00044,7]
[319557230,1710856234876,-500.0,0.00044,7]
[319557231,1710856234886,-500.0,0.00044,7]
[319557232,1710856234895,-500.0,0.00044,7]
[319557233,1710856234905,-500.0,0.00044,7]
[319557234,1710856234915,-500.0,0.00044,7]
[319557235,1710856234925,-500.0,0.00044,7]
[319557236,1710856234934,-500.0,0.00044,7]
[319557237,1710856234943,-500.0,0.00044,7]
[319557238,1710856234957,-500.0,0.00044,7]
[319557239,1710856234968,-500.0,0.00044,7]
[319557240,1710856234977,-500.0,0.00044,7]
[319557241,1710856234987,-500.0,0.00044,7]
[319557242,1710856234997,-500.0,0.00044,7]
[319557243,1710856235007,-500.0,0.00044,7]
[319557244,1710856235017,-500.0,0.00044,7]
[319557245,1710856235028,-500.0,0.00044,7]
[319557246,1710856235039,-500.0,0.00044,7]
[319557247,1710856235050,-500.0,0.00044,7]
[319557248,1710856235061,-500.0,0.00044,7]
[319557249,1710856235072,-500.0,0.00044,7]
[319557250,1710856235082,-500.0,0.00044,7]
[319557251,1710856235092,-500.0,0.00044,7]
[319557252,1710856235102,-500.0,0.00044,7]
[319557253,1710856235113,-500.0,0.00044,7]
[319557254,1710856235123,-512.79,0.00044,7]
[319557255,1710856235133,-500.0,0.00044,7]
[319557256,1710856235143,-500.0,0.00044,7]
[319557257,1710856235153,-500.0,0.00044,7]
[319557258,1710856235162,-500.0,0.00044,7]
[319557259,1710856235172,-500.0,0.00044,7]
[319557260,1710856235184,-500.0,0.00044,7]
[319557261,1710856235193,-500.0,0.00044,7]
[319557262,1710856235205,-500.0,0.00044,7]
[319557263,1710856235215,-500.0,0.00044,7]
[319557264,1710856235227,-500.0,0.00044,7]
[319557265,1710856235237,-500.0,0.00044,7]
[319557266,1710856235247,-500.0,0.00044,7]
[319557267,1710856235257,-500.0,0.00044,7]
[319557268,1710856235267,-500.0,0.00044,7]
[319557269,1710856235279,-500.0,0.00044,7]
[319557270,1710856235289,-500.0,0.00044,7]
[319557271,1710856235299,-500.0,0.00044,7]
[319557272,1710856235309,-500.0,0.00044,7]
[319557273,1710856235320,-500.0,0.00044,7]
[319557274,1710856235329,-540.03,0.00044,7]
[319557275,1710856235339,-150.0,0.00044,45]
[319557276,1710856235349,-156.49953638,0.00044008,30]
[319557277,1710856235359,-155.0,0.00044098,4]
[319557278,1710856235368,-948.57,0.00044109,78]
[319557279,1710856235378,-10741.53583914,0.00044126,6]
[319557280,1710856235388,-152.47008401,0.0004418,30]
[319557281,1710856235397,-150.09287775,0.0004423,120]
[319557282,1710856235407,-86092.30400606,0.0004425,5]
[319557283,1710856235417,-1397.91,0.00044273,78]
[319557284,1710856235428,-187.28362032,0.00044335,11]
[319557285,1710856235437,-300.0,0.000444,16]
[319557286,1710856235447,-210.0,0.0004448,30]
[319557287,1710856235460,-383.78574706,0.000445,120]
[319557288,1710856235470,-600.0,0.000445,16]
[319557289,1710856235480,-153.04088205,0.00044547,3]
[319557290,1710856235489,-230.00654031,0.00044548,4]
[319557291,1710856235499,-1000.0,0.000446,16]
[319557292,1710856235509,-1300.0,0.000447,16]
[319557293,1710856235518,-153.02334127,0.000448,24]
[319557294,1710856235527,-1700.0,0.000448,16]
[319557295,1710856235537,-160.77906561,0.000448,2]
[319557296,1710856235547,-164.62650338,0.00044888,2]
[319557297,1710856235557,-47345.8147,0.00044898,2]
[319557298,1710856235568,-1479.42573068,0.000449,20]
[319557299,1710856235579,-465100.18919684,0.000449,60]
[319557300,1710856235589,-300.0,0.000449,16]
[319557301,1710856235598,-1753.2530002,0.000449,2]
[319557302,1710856235608,-1085.70307944,0.000449,39]
[319557303,1710856235617,-186.5806602,0.000449,9]
[319557304,1710856235627,-246.26084236,0.000449,2]
[319557305,1710856235636,-471.30567618,0.000449,2]
[319557306,1710856235647,-1062.88854076,0.000449,2]
[319557307,1710856235656,-156.9378575,0.000449,2]
[319557308,1710856235666,-948.57,0.00044931,80]
[319557309,1710856235676,-164.62650338,0.00044989,2]
[319557310,1710856235686,-164.62650338,0.00044989,2]
[319557311,1710856235695,-155.0,0.00044993,2]
[319557312,1710856235709,-1157.07836,0.00044997,26]
[319557313,1710856235719,-155.0,0.00044998,4]
[319557314,1710856235729,-378.87316982,0.00044998,4]
[319557315,1710856235740,-558.7214272,0.00044999,60]
[319557316,1710856235749,-160.27930951,0.00044999,4]
[319557317,1710856235759,-5366.39553705,0.00044999,4]
[319557318,1710856235769,-2906.66809973,0.00044999,2]
[319557319,1710856235778,-343.46057444,0.00044999,7]
[319557320,1710856235788,-7884.14817861,0.00045,30]
[319557321,1710856235797,-300.0,0.00045,7]
[319557322,1710856235807,-254.15009224,0.00045,7]
[319557323,1710856235817,-1000.0,0.00045,30]
[319557324,1710856235826,-1273.7274132,0.00045,120]
[319557325,1710856235836,-5754.306,0.00045,60]
[319557326,1710856235846,-300.0,0.00045,45]
[319557327,1710856235855,-527269.91086207,0.00045,30]
[319557328,1710856235865,-1000.0,0.00045,120]
[319557329,1710856235874,-6000.0,0.00045,60]
[319557330,1710856235884,-500.0,0.00045,30]
[319557331,1710856235893,-81231.19738095,0.00045,6]
[319557332,1710856235902,-150.72773007,0.00045,2]
[319557333,1710856235912,-179.42580742,0.00045,2]
[319557334,1710856235922,-260.57,0.00045,60]
[319557335,1710856235931,-151.0,0.00045,14]
[319557336,1710856235941,-151.0,0.00045,14]
[319557337,1710856235951,-151.0,0.00045,14]
[319557338,1710856235962,-151.0,0.00045,14]
[319557339,1710856235973,-151.0,0.00045,14]
[319557340,1710856235983,-151.0,0.00045,14]
[319557341,1710856235993,-151.0,0.00045,14]
[319557342,1710856236003,-503.605856,0.00045,14]
[319557343,1710856236013,-340.801969,0.00045,14]
[319557344,1710856236022,-151.0,0.00045,14]
[319557345,1710856236033,-503.605856,0.00045,14]
[319557346,1710856236042,-340.801969,0.00045,14]
[319557347,1710856236052,-209.10019,0.00045,14]
[319557348,1710856236061,-209.10019,0.00045,14]
[319557349,1710856236071,-151.0,0.00045,14]
[319557350,1710856236081,-1637.876382,0.00045,14]
[319557351,1710856236091,-1637.876382,0.00045,14]
[319557352,1710856236100,-151.0,0.00045,14]
[319557353,1710856236110,-250.999641,0.00045,14]
[319557354,1710856236120,-151.0,0.00045,14]
[319557355,1710856236129,-250.999641,0.00045,14]
[319557356,1710856236139,-151.0,0.00045,14]
[319557357,1710856236149,-285.307849,0.00045,14]
[319557358,1710856236159,-151.0,0.00045,14]
[319557359,1710856236168,-151.0,0.00045,14]
[319557360,1710856236179,-151.0,0.00045,14]
[319557361,1710856236188,-151.0,0.00045,7]
[319557362,1710856236198,-151.0,0.00045,14]
[319557363,1710856236211,-152.357203,0.00045,14]
[319557364,1710856236221,-151.0,0.00045,14]
[319557365,1710856236234,-151.0,0.00045,14]
[319557366,1710856236244,-151.0,0.00045,14]
[319557367,1710856236253,-151.0,0.00045,7]
[319557368,1710856236262,-151.0,0.00045,14]
[319557369,1710856236272,-209.466486,0.00045,14]
[319557370,1710856236282,-151.0,0.00045,14]
[319557371,1710856236291,-24423.0495582,0.00045002,2]
[319557372,1710856236300,-285.6376697,0.00045002,2]
[319557373,1710856236310,-13167.003216,0.00045002,2]
[319557374,1710856236320,-12274.6723505,0.00045002,2]
[319557375,1710856236329,-2478.9055214,0.00045002,2]
[319557376,1710856236339,-708.7122143,0.00045002,2]
[319557377,1710856236350,-1397.91,0.00045095,80]
[319557378,1710856236360,-1479.4257306,0.00045143,20]
[319557379,1710856236369,-391.26894345,0.00045184,7]
[319557380,1710856236379,-1085.70307941,0.00045362,39]
[319557381,1710856236388,-261.64373332,0.0004537,45]
[319557382,1710856236399,-1479.4257306,0.00045386,20]
[319557383,1710856236409,-326.83,0.00045428,2]
[319557384,1710856236419,-10741.53583914,0.00045501,7]
[319557385,1710856236429,-187.28362032,0.00045542,12]
[319557386,1710856236439,-1479.4257306,0.00045628,21]
[319557387,1710856236449,-948.57,0.00045753,82]
[319557388,1710856236461,-151.0,0.00045782,14]
[319557389,1710856236471,-151.0,0.00045782,14]
[319557390,1710856236481,-153.357515,0.00045782,14]
[319557391,1710856236490,-151.0,0.00045782,14]
[319557392,1710856236500,-151.0,0.00045782,14]
[319557393,1710856236510,-151.0,0.00045782,14]
[319557394,1710856236519,-151.0,0.00045782,14]
[319557395,1710856236529,-152.635247,0.00045782,14]
[319557396,1710856236539,-185.307003,0.00045782,14]
[319557397,1710856236549,-185.307003,0.00045782,14]
[319557398,1710856236559,-151.0,0.00045782,14]
[319557399,1710856236570,-147917.32299286,0.00045782,30]
[319557400,1710856237254,-32925.86003633,0.00045782,30]
[319557401,1710856237267,-62360.55697081,0.00045782,30]
[319557402,1710856237277,-210.0,0.0004581,30]
[319557403,1710856237287,-1076.44302919,0.00045825,40]
[319557404,1710856237303,-9.26005022,0.00045825,40]
[319557405,1710856237314,-1479.4257306,0.00045871,21]
[319557406,1710856237324,-455.29059815,0.00045888,2]
[319557460,1710856240008,-580.26573464,0.00044897,2]
[319557461,1710856240032,-408.33631697,0.00044897,2]
[319557485,1710856240862,-4678.64834098,0.00044897,2]
[319557486,1710856240872,-5667.25039259,0.00044997,2]
[319557487,1710856240882,-1297.96240205,0.00045888,2]
[319557488,1710856240891,-246.26084236,0.00045888,2]
[319557489,1710856240901,-305897.0843551,0.000459,7]
[319557490,1710856240985,-1335.58516894,0.000459,7]
[319557491,1710856241007,-484.9,0.000459,7]
[319557498,1710856243040,-716.0,0.00039486,5]
[319557499,1710856243050,-31127.798592,0.000459,7]
[319557500,1710856243122,-2627.76022133,0.000459,7]
[319557501,1710856243227,-3366.03145353,0.000459,7]
[319557502,1710856243240,-660.591677,0.000459,7]
[319557503,1710856243257,-571.00000017,0.000459,7]
[319557504,1710856243304,-1181.67745443,0.000459,7]
[319557505,1710856243316,-1367.80188262,0.000459,7]
[319557789,1710856246119,-440.00621261,0.00044896,4]
[319557792,1710856246130,-5500.88053014,0.00045899,4]
[319557794,1710856246139,-4535.94325595,0.000459,7]
[319557796,1710856246151,-341.37433057,0.000459,7]
[319557812,1710856246307,-406.95800759,0.000459,7]
[319557815,1710856246319,-996.27509641,0.000459,7]
[319557826,1710856246416,-4759.98626258,0.000459,7]
[319557828,1710856246428,-400.46217683,0.000459,7]
[319557830,1710856246440,-299.33406665,0.000459,7]
[319557833,1710856246452,-861.47657394,0.000459,7]
[319557835,1710856246470,-3378.80629075,0.000459,7]
[319558384,1710856287246,4597.22,0.0002302,120]
[319558399,1710856772911,760.4199,0.000139,2]
[319558400,1710856790833,164.80263204,0.000139,2]
[319558401,1710856817603,2004.15982922,0.000139,2]
[319558402,1710857214621,164.80263204,0.000139,2]
[319558412,1710857234328,163.12184422,0.00013898,2]
[319558414,1710857239577,163.12184418,0.00013898,2]
[319558417,1710857244453,163.12184418,0.00013899,2]
[319558418,1710857249325,163.12184418,0.00013899,2]
[319558419,1710857255283,163.12184418,0.00013899,2]
[319558420,1710857259293,163.12184418,0.000139,2]
[319558421,1710857264425,163.12184418,0.000139,2]
[319558495,1710857432216,-400.0,0.00013949,2]
[319558496,1710857432226,-164.96805019,0.00013949,2]
[319558497,1710857432238,-155.0,0.0001395,2]
[319558498,1710857432248,-2974.46712891,0.0001395,2]
[319558499,1710857432259,-305.5648209,0.00013998,2]
[319558500,1710857432273,-6006.78589425,0.00013998,2]
[319558501,1710857432283,-198.84066801,0.00013998,2]
[319558502,1710857432293,-552.12932495,0.00013998,2]
[319558503,1710857432303,-1052.06896339,0.00013999,2]
[319558504,1710857432313,-13997.87595077,0.00013999,2]
[319558505,1710857432323,-75750.79919846,0.00014,2]
[319558506,1710857432430,-4211.84814085,0.00014,2]
[319558507,1710857432441,-1068.89533186,0.00014,2]
[319558508,1710857432454,-16192.209015,0.00014,2]
[319558509,1710857432477,-1410.2626,0.00014,2]
[319558510,1710857432496,-1239.81784867,0.00014,2]
[319558511,1710857432509,-945.096,0.00014,2]
[319558914,1710857438167,-450.60309578,0.00014,2]
[319558915,1710857438179,-490.37171532,0.00014,2]
[319558916,1710857438223,-35945.0,0.00014,2]
[319558917,1710857438411,-838.86498246,0.00014,2]
[319558918,1710857438423,-712.85127915,0.00014,2]
[319558919,1710857438438,-6304.60000001,0.00014,2]
[319558920,1710857438450,-4999.5089931,0.00014,2]
[319558921,1710857438480,-1359.26572864,0.00014,2]
[319558922,1710857438492,-23804.72664419,0.00014,2]
[319558944,1710857440229,-106150.48778404,0.00014,2]
[319558945,1710857440242,-705.85169621,0.00014,2]
[319558946,1710857440259,-376.67121008,0.00014,2]
[319558947,1710857440272,-315.6,0.00014,2]
[319558948,1710857440284,-1083.85001357,0.00014,2]
[319558949,1710857440325,-4020.02400001,0.00014,2]
[319558950,1710857440337,-997.75373023,0.00014,2]
[319558951,1710857440358,-350.55781886,0.00014,2]
[319558952,1710857440370,-4966.7063304,0.00014,2]
[319558953,1710857440382,-321.76073503,0.00014,2]
[319558954,1710857440393,-557.57111248,0.00014,2]
[319558955,1710857440405,-1048.582763,0.00014,2]
[319558956,1710857440417,-2171.11773225,0.00014,2]
[319558957,1710857440441,-613.46221154,0.00014,2]
[319558958,1710857440452,-588.209208,0.00014,2]
[319558959,1710857440495,-281.70783134,0.00014,2]
[319558960,1710857440507,-342.0423,0.00014,2]
[319558961,1710857440518,-3315.233053,0.00014,2]
[319559010,1710857443269,-879.1582705,0.00013999,2]
[319559013,1710857443279,-164.77283599,0.00013999,2]
[319559016,1710857443288,-161456.06889351,0.00014,2]
[319559018,1710857443300,-2166.48531277,0.00014,2]
[319559020,1710857443311,-20997.197198,0.00014,2]
[319559023,1710857443335,-5761.41671701,0.00014,2]
[319559026,1710857443356,-536.49144155,0.00014,2]
[319559028,1710857443368,-10361.7804936,0.00014,2]
[319559032,1710857443394,-1005.94384748,0.00014,2]
[319559034,1710857443406,-4157.62904452,0.00014,2]
[319559047,1710857443543,-313.52311845,0.00014,2]
[319559054,1710857443615,-1561.17758461,0.00014,2]
[319559059,1710857443651,-1576.720465,0.00014,2]
[319559062,1710857443668,-2559.2,0.00014,2]
[319559100,1710857446194,-155.0,0.00013999,2]
[319559105,1710857446204,-3100.30993903,0.00014,2]
[319559111,1710857446225,-276.90558802,0.00014,2]
[319559119,1710857446245,-1108.87164166,0.00014,2]
[319559123,1710857446258,-586.64813326,0.00014,2]
[319559127,1710857446276,-500.0,0.00014,2]
[319559136,1710857446307,-666.34838397,0.00014,2]
[319559144,1710857446327,-3879.63698538,0.00014,2]
[319559149,1710857446338,-285.47294686,0.00014,2]
[319559153,1710857446353,-572.48,0.00014,2]
[319559158,1710857446366,-805.0269125,0.00014,2]
[319559205,1710857446824,-6170.76786222,0.00014,2]
[319559206,1710857446841,-333.70314074,0.00014,2]
[319559207,1710857446858,-190832.00000013,0.00014,2]
[319559208,1710857446889,-611.705515,0.00014,2]
[319559209,1710857446902,-302.0,0.00014,2]
[319559210,1710857446915,-967.90763864,0.00014,2]
[319559211,1710857446927,-295.25514135,0.00014,2]
[319559212,1710857446940,-16525.57278363,0.00014,2]
[319559213,1710857446956,-264.208,0.00014,2]
[319559214,1710857446969,-11125.71470615,0.00014,2]
[319559215,1710857446982,-458.55298421,0.00014,2]
[319559216,1710857446999,-78380.3770881,0.00014,2]
[319559217,1710857447011,-23699.89922496,0.00014,2]
[319559218,1710857447024,-173257.03620321,0.00014,2]
[319559219,1710857447036,-54599.9356161,0.00014,2]
[319559220,1710857447047,-9325.38772,0.00014,2]
[319559221,1710857447059,-98580.36501016,0.00014,2]
[319559222,1710857447071,-1526.24678516,0.00014,2]
[319559223,1710857447083,-51471.10076036,0.00014,2]
[319559224,1710857447093,-2004.15982921,0.00016936,2]
[319559225,1710857447111,-643.24708674,0.00018,2]
[319559226,1710857447121,-500.0,0.00019178,2]
[319559227,1710857447131,-195.91635025,0.00019178,2]
[319559228,1710857447140,-216.77382626,0.00019178,2]
[319559229,1710857447150,-3840.53039433,0.000192,2]
[319559230,1710857447159,-2004.15982921,0.00019972,2]
[319559231,1710857447170,-2004.15982921,0.00023008,2]
[319559232,1710857447180,-268.65485976,0.0002403,2]
[319559233,1710857447191,-155.0,0.00025,2]
[319559234,1710857447201,-10182.94987299,0.0002503,3]
[319559235,1710857447211,-200.69452147,0.0002503,30]
[319559236,1710857447220,-18248.0072655,0.0002503,120]
[319559237,1710857447230,-2500.0,0.0002503,30]
[319559238,1710857447240,-2988.0,0.0002503,10]
[319559239,1710857447250,-10008.17909401,0.0002503,2]
[319559240,1710857447261,-7795.89537112,0.0002503,7]
[319559241,1710857447271,-2004.15982921,0.00026044,2]
[319559242,1710857447282,-179.75,0.00026134,2]
[319559243,1710857447292,-151.97156079,0.00027028,2]
[319559244,1710857447301,-250.0,0.00027397,2]
[319559245,1710857447311,-500.0,0.00027945,2]
[319559246,1710857447321,-180.76,0.00028051,120]
[319559247,1710857447331,-250.0,0.00028051,2]
[319559248,1710857447341,-250.0,0.00028101,2]
[319559249,1710857447354,-223.73,0.00028358,2]
[319559250,1710857447364,-179.75,0.00028398,2]
[319559251,1710857447373,-2837.13,0.00028447,2]
[319559252,1710857447392,-160.56,0.00028476,10]
[319559253,1710857447405,-750.0,0.00028493,2]
[319559254,1710857447416,-166.66666668,0.00028554,2]
[319559255,1710857447426,-250.0,0.00028607,2]
[319559256,1710857447436,-250.0,0.00029041,2]
[319559257,1710857447446,-2004.15982921,0.0002908,2]
[319559258,1710857447457,-153.02334127,0.000299,2]
[319559259,1710857447466,-220.0,0.0003,120]
[319559260,1710857447477,-179.75,0.00030661,2]
[319559261,1710857447487,-2004.15982921,0.00032117,3]
[319559262,1710857447497,-590.0,0.00032123,5]
[319559263,1710857447507,-179.75,0.00032925,2]
[319559264,1710857447517,-2500.0,0.00034125,10]
[319559265,1710857447529,-153.04593669,0.00034708,7]
[319559266,1710857447542,-4302.00755865,0.00035,30]
[319559267,1710857447552,-2004.15982921,0.00035153,7]
[319559268,1710857447562,-179.75,0.00035189,2]
[319559269,1710857447574,-151.97156079,0.00035998,7]
[319559270,1710857447584,-242.0,0.00036,120]
[319559271,1710857447595,-18987.71696701,0.000363,7]
[319559272,1710857447608,-71289.8536,0.000365,2]
[319559273,1710857447619,-195.63447173,0.000366,2]
[319559274,1710857447629,-500.0,0.00036712,60]
[319559275,1710857447639,-757.2,0.00036876,60]
[319559276,1710857447650,-2511.0205057,0.00037151,30]
[319559277,1710857447660,-179.75,0.00037453,2]
[319559278,1710857447670,-500.0,0.00037534,62]
[319559279,1710857447680,-152.47008402,0.00037542,7]
[319559280,1710857447691,-757.2,0.00037698,62]
[319559281,1710857447701,-156.34,0.00037835,120]
[319559282,1710857447711,-151.0,0.00038097,2]
[319559283,1710857447721,-153.04593669,0.00038109,7]
[319559284,1710857447731,-2004.15982921,0.00038189,11]
[319559285,1710857447742,-500.0,0.00038356,64]
[319559286,1710857447752,-169.3663949,0.00038453,7]
[319559287,1710857447762,-757.2,0.0003852,64]
[319559288,1710857447773,-160.56,0.0003875,10]
[319559289,1710857447783,-12199.41478721,0.000389,5]
[319559290,1710857447793,-210.0,0.0003917,2]
[319559291,1710857447804,-500.0,0.00039178,66]
[319559292,1710857447814,-757.2,0.00039342,66]
[319559293,1710857447824,-162.73,0.00039379,2]
[319559294,1710857447834,-527.43943988,0.000395,2]
[319559295,1710857447845,-179.75,0.00039717,2]
[319559296,1710857447859,-318.74421578,0.0004,7]
[319559297,1710857447869,-500.19053759,0.0004,5]
[319559298,1710857447880,-500.0,0.0004,68]
[319559299,1710857447890,-500.0,0.0004,14]
[319559300,1710857447901,-500.0,0.0004,14]
[319559301,1710857447911,-500.0,0.0004,14]
[319559302,1710857447921,-500.0,0.0004,14]
[319559303,1710857447932,-500.0,0.0004,14]
[319559304,1710857447943,-500.0,0.0004,14]
[319559305,1710857447954,-500.0,0.0004,14]
[319559306,1710857447965,-500.0,0.0004,14]
[319559307,1710857447976,-500.0,0.0004,14]
[319559308,1710857447987,-500.0,0.0004,14]
[319559309,1710857447998,-500.0,0.0004,14]
[319559310,1710857448009,-500.0,0.0004,14]
[319559311,1710857448020,-500.0,0.0004,14]
[319559312,1710857448030,-500.0,0.0004,14]
[319559313,1710857448040,-500.0,0.0004,14]
[319559314,1710857448050,-500.0,0.0004,14]
[319559315,1710857448061,-500.0,0.0004,14]
[319559316,1710857448072,-500.0,0.0004,14]
[319559317,1710857448083,-500.0,0.0004,14]
[319559318,1710857448102,-500.0,0.0004,14]
[319559319,1710857448114,-500.0,0.0004,14]
[319559320,1710857448128,-500.0,0.0004,14]
[319559321,1710857448139,-500.0,0.0004,14]
[319559322,1710857448150,-500.0,0.0004,14]
[319559323,1710857448161,-500.0,0.0004,14]
[319559324,1710857448172,-500.0,0.0004,14]
[319559325,1710857448183,-500.0,0.0004,14]
[319559326,1710857448194,-500.0,0.0004,14]
[319559327,1710857448205,-500.0,0.0004,14]
[319559328,1710857448216,-500.0,0.0004,14]
[319559329,1710857448228,-500.0,0.0004,14]
[319559330,1710857448238,-500.0,0.0004,14]
[319559331,1710857448248,-500.0,0.0004,14]
[319559332,1710857448259,-500.0,0.0004,14]
[319559333,1710857448270,-500.0,0.0004,14]
[319559334,1710857448280,-500.0,0.0004,14]
[319559335,1710857448291,-500.0,0.0004,14]
[319559336,1710857448301,-500.0,0.0004,14]
[319559337,1710857448312,-500.0,0.0004,14]
[319559338,1710857448323,-500.0,0.0004,14]
[319559339,1710857448335,-500.0,0.0004,14]
[319559340,1710857448346,-500.0,0.0004,14]
[319559341,1710857448363,-500.0,0.0004,14]
[319559342,1710857448374,-500.0,0.0004,14]
[319559343,1710857448386,-500.0,0.0004,14]
[319559344,1710857448398,-500.0,0.0004,14]
[319559345,1710857448411,-500.0,0.0004,14]
[319559346,1710857448423,-500.0,0.0004,14]
[319559347,1710857448433,-500.0,0.0004,14]
[319559348,1710857448443,-500.0,0.0004,14]
[319559349,1710857448453,-500.0,0.0004,14]
[319559350,1710857448463,-500.0,0.0004,14]
[319559351,1710857448473,-500.0,0.0004,14]
[319559352,1710857448484,-500.0,0.0004,14]
[319559353,1710857448495,-500.0,0.0004,14]
[319559354,1710857448505,-500.0,0.0004,14]
[319559355,1710857448515,-500.0,0.0004,14]
[319559356,1710857448525,-204.62880015,0.0004,14]
[319559357,1710857448545,-295.37119985,0.0004,14]
[319559358,1710857448557,-500.0,0.0004,14]
[319559359,1710857448569,-500.0,0.0004,14]
[319559360,1710857448582,-100.54483025,0.0004,14]
[319559361,1710857448619,-399.45516975,0.0004,14]
[319559362,1710857448629,-500.0,0.0004,14]
[319559363,1710857448640,-500.0,0.0004,14]
[319559364,1710857448650,-500.0,0.0004,14]
[319559365,1710857448662,-500.0,0.0004,14]
[319559366,1710857448672,-426.93050709,0.0004,14]
[319559367,1710857448685,-73.06949291,0.0004,14]
[319559368,1710857448694,-500.0,0.0004,14]
[319559369,1710857448704,-500.0,0.0004,14]
[319559370,1710857448714,-500.0,0.0004,14]
[319559371,1710857448725,-500.0,0.0004,14]
[319559372,1710857448735,-500.0,0.0004,14]
[319559373,1710857448744,-54.21047509,0.0004,14]
[319559374,1710857448798,-265.293501,0.0004,14]
[319559375,1710857486013,3001.7023,0.00013897,2]
[319559387,1710857935805,2000.0,0.000138,2]
[319559395,1710858443624,-535.3809211,0.00013908,2]
[319559396,1710858443644,-2165.35441959,0.00013909,2]
[319559397,1710858443665,-277.05147729,0.00013909,2]
[319559398,1710858443685,-783.00202095,0.00013909,2]
[319559399,1710858443705,-704.18979387,0.0001391,2]
[319559400,1710858443725,-1060.6246406,0.0001391,2]
[319559401,1710858443747,-746.2612112,0.00013911,2]
[319559402,1710858443768,-449.61243464,0.00013912,2]
[319559403,1710858443788,-710.50919846,0.00013912,2]
[319559404,1710858443813,-374.03634039,0.00013913,2]
[319559405,1710858443836,-522.56926041,0.00013913,2]
[319559406,1710858443855,-300.0,0.00013916,2]
[319559407,1710858443876,-158.13291202,0.00013926,2]
[319559408,1710858443896,-150.99,0.00013927,2]
[319559409,1710858443916,-2974.46712891,0.00013992,2]
[319559410,1710858443938,-3391.72656248,0.00013993,2]
[319559411,1710858443964,-400.0,0.00013999,2]
[319559412,1710858443985,-206.09167809,0.00019,2]
[319559622,1710858632351,-232.20623137,0.00019996,2]
[319559623,1710858632364,-294.19642187,0.00019997,2]
[319559624,1710858632378,-1437.6605761,0.00019997,2]